Cogmind - Beta 9.6 @@@ ROGUE MODE // 2020.09.01 @ 19:31:29 Player: Cracklepappy Result: Self-destructed Performance ------------- Evolutions (2) 1000 Regions Visited (6) 1200 Robots Destroyed (69) 345 Value Destroyed (1663) 1663 Prototype IDs (5) 100 Alien Tech Used (0) 0 Bonus (733) 733 TOTAL SCORE: 5041 Bonus ------- High Alert Combat Kills 33 Entered Garrisons 200 Used RIF Installer 500 Cogmind --------- Core Integrity 123/550 Matter 300/300 Energy 62/160 System Corruption 0% Temperature Cool (420) Movement Core (1500) Ox29 Location -8/Garrison Parts ------- > --- POWER (1) -------- Light Nuclear Core > --- PROPULSION (3) --- (None) > --- UTILITY (5) ------ Medium Storage Unit Large Storage Unit Large Storage Unit High-capacity Storage Unit Improved Medium Armor Plating > --- WEAPON (2) ------- Lightning Gun > --- INVENTORY (28) --- Light Treads Light Treads Improved Heat Sink Improved Heat Sink Improved Heat Sink Improved Heat Sink Improved Heat Sink Improved Heat Sink Medium Storage Unit Medium Storage Unit High-capacity Battery (400) Large Matter Pod (150) Experimental Sensor Array Advanced Terrain Scanner Improved Light Armor Plating Improved Light Armor Plating Improved Light Armor Plating Improved Medium Armor Plating Improved Medium Armor Plating Relay Coupler [Swarmer] (43) Relay Coupler [Grunt] (21) Relay Coupler [Sentry] (17) Relay Coupler [Sentry] (24) Lightning Gun Light Assault Rifle Heavy Assault Rifle Mining Laser Katana Peak State ------------ > --- POWER ------------ Light Nuclear Core > --- PROPULSION ------- Compact Wheel > --- UTILITY ---------- Medium Storage Unit Large Storage Unit Large Storage Unit High-capacity Storage Unit Improved Medium Armor Plating > --- WEAPON ----------- Lightning Gun Lightning Gun > --- INVENTORY -------- Light Treads Light Treads Improved Heat Sink Improved Heat Sink Improved Heat Sink Improved Heat Sink Improved Heat Sink Improved Heat Sink Medium Storage Unit Medium Storage Unit High-capacity Battery Large Matter Pod Experimental Sensor Array Advanced Terrain Scanner Improved Light Armor Plating Improved Light Armor Plating Improved Light Armor Plating Improved Medium Armor Plating Improved Medium Armor Plating Relay Coupler [Swarmer] Relay Coupler [Grunt] Relay Coupler [Sentry] Relay Coupler [Sentry] Lightning Gun Light Assault Rifle Heavy Assault Rifle Mining Laser Katana [Rating: 27] Favorites ----------- Power Ion Engine Engine Ion Engine Power Core Light Nuclear Core Propulsion Wheel Wheel Wheel Utility Large Storage Unit Device Improved Heat Sink Storage Large Storage Unit Protection Improved Light Armor Plating Weapon Assault Rifle Energy Gun EM Shotgun Ballistic Gun Assault Rifle Ballistic Cannon Assault Cannon Special Weapon Mining Laser Build | -11 -10 -10 -10 -9 -8 -8 ------- Run | Scr Mat Min Exi Min Mat Gar Slots Evolved 4 | . . . . . 4 . Power . | . . . . . . . Propulsion 1 | . . . . . 1 . Utility 3 | . . . . . 3 . Weapon . | . . . . . . . Parts Attached 64 | 9 25 . 1 1 3 25 Power 7 | 1 4 . . . . 2 Engine 6 | 1 4 . . . . 1 Core 1 | . . . . . . 1 Reactor . | . . . . . . . Propulsion 16 | 4 5 . . 1 1 5 Treads . | . . . . . . . Leg . | . . . . . . . Wheel 16 | 4 5 . . 1 1 5 Hover . | . . . . . . . Flight . | . . . . . . . Utility 14 | 2 4 . 1 . 2 5 Device 4 | 1 . . . . 1 2 Storage 8 | 1 4 . 1 . 1 1 Processor . | . . . . . . . Hackware . | . . . . . . . Protection 2 | . . . . . . 2 Artifact . | . . . . . . . Weapon 27 | 2 12 . . . . 13 Energy Gun 10 | 1 5 . . . . 4 Energy Cannon . | . . . . . . . Ballistic Gun 12 | 1 5 . . . . 6 Ballistic Cannon 2 | . . . . . . 2 Launcher . | . . . . . . . Special Weapon 3 | . 2 . . . . 1 Impact Weapon . | . . . . . . . Slashing Weapon . | . . . . . . . Piercing Weapon . | . . . . . . . Special Melee Weapon . | . . . . . . . Unidentified Prototypes . | . . . . . . . Parts Lost 28 | . 7 . . 1 . 20 Power 5 | . 3 . . . . 2 Propulsion 9 | . 2 . . 1 . 6 Utility 2 | . . . . . . 2 Weapon 12 | . 2 . . . . 10 Highest Loss Streak 8 | . 5 . . 1 . 8 Average Slot Usage (%) 90 | . 96 100 100 100 85 78 Engine 10 | . 12 14 14 14 9 5 Wheel 22 | . 26 28 28 28 27 13 Device 3 | . . . . . 4 7 Storage 28 | . 27 28 28 28 27 30 Protection 1 | . . . . . . 4 Energy Gun 4 | . 10 . . . . 3 Ballistic Gun 17 | . 17 28 28 28 18 10 Naked Turns . | . . . . . . . Heaviest Build 92 | 12 41 41 57 57 74 92 Greatest Support 36 | 32 20 20 20 20 30 36 Greatest Overweight (x) 5 | . 2 2 2 2 2 5 Average Overweight (x) 1 | . . 2 2 2 2 3 Largest Inventory Capacity 28 | 6 16 16 18 18 24 28 Average Capacity 17 | 5 10 16 16 18 24 25 Most Carried 28 | 6 14 16 17 18 19 28 Average Carried 15 | 4 9 15 16 17 17 21 Final Capacity 28 | 6 16 16 18 18 24 28 Final Carried 28 | 6 13 16 17 18 19 28 Class Distribution -------------------- 54% | Mutant 35% | Hauler-Mutant 10% | Scavenger-Mutant Dominant Class ---------------- Mutant | -10/Materials Mutant | -10/Mines Mutant | -10/Exiles Mutant | -9/Mines Hauler-Mutant | -8/Materials Hauler-Mutant | -8/Garrison Resources | -11 -10 -10 -10 -9 -8 -8 ----------- Run | Scr Mat Min Exi Min Mat Gar Matter Collected 1519 | 339 368 137 95 77 26 477 Remotely . | . . . . . . . Salvage Created 2053 | 224 703 168 . 87 . 871 Parts 132 | 20 44 22 . 8 . 38 Haulers Intercepted 2 | . 2 . . . . . Recyclers Shooed 2 | 1 . 1 . . . . Parts Field Recycled . | . . . . . . . Retrieved Matter . | . . . . . . . Parts Self-Destructed . | . . . . . . . Prevented . | . . . . . . . Kills | -11 -10 -10 -10 -9 -8 -8 ------- Run | Scr Mat Min Exi Min Mat Gar Combat Hostiles Destroyed 46 | . 12 9 . 4 . 21 Guns 36 | . 9 9 . 4 . 14 Cannons 5 | . . . . . . 5 AOE 3 | . 2 . . . . 1 Classes Destroyed 11 | 3 5 . . . . 3 Worker 8 | 2 4 2 . . . . Builder 1 | . 1 . . . . . Tunneler 9 | 8 . . . 1 . . Hauler 2 | . 2 . . . . . Recycler 1 | 1 . . . . . . Watcher 2 | . 2 . . . . . Swarmer 20 | . 3 9 . 4 . 4 Grunt 22 | . 9 . . . . 13 Duelist 1 | . . . . . . 1 Sentry 2 | . . . . . . 2 Hunter 1 | . . . . . . 1 Best Kill Streak 8 | 6 5 3 . 3 . 8 Combat Bots Only 8 | . 3 3 . 3 . 8 Max Kills in Single Turn 2 | 2 2 2 . 1 . 2 Gunslinging 1 | . . 1 . . . 1 Exploded 1 | . 1 . . . . 1 Melee . | . . . . . . . Uniques/NPCs Destroyed . | . . . . . . . Combat | -11 -10 -10 -10 -9 -8 -8 -------- Run | Scr Mat Min Exi Min Mat Gar Damage Taken 3336 | . 696 184 . 82 . 2374 Core 642 | . 134 46 . 35 . 427 Absorbed by Shields 10 | . . . . . . 10 Core Remaining (%) 57 | 100 . . . 14 . . Volleys Fired 187 | 18 65 17 . 13 . 74 Largest 2 | 2 2 2 . 2 . 2 Hottest 110 | 70 100 40 . 40 . 110 Shots Fired 346 | 36 114 34 . 26 . 136 Gun 315 | 36 107 34 . 26 . 112 Cannon 24 | . . . . . . 24 Launcher . | . . . . . . . Special 7 | . 7 . . . . . Kinetic 229 | 18 56 34 . 26 . 95 Thermal 25 | 18 7 . . . . . Explosive . | . . . . . . . Electromagnetic 92 | . 51 . . . . 41 Robot Hit Streak 16 | 6 12 11 . 15 . 16 Robot Miss Streak 10 | 2 3 4 . 3 . 10 Penetration Max . | . . . . . . . Secondary Targets 5 | . 1 3 . . . 1 Max Gunslinging Chain 1 | . 1 1 . . . 1 Shots Hit Robots 222 | 18 80 17 . 14 . 93 Core Hits 112 | 12 36 11 . 6 . 47 Critical Hits 2 | 1 . . . . . 1 Critical Kills 1 | . . . . . . 1 Critical Parts Destroyed 1 | 1 . . . . . . Melee Attacks . | . . . . . . . Impact . | . . . . . . . Slashing . | . . . . . . . Piercing . | . . . . . . . Sneak Attacks . | . . . . . . . Combat Hostiles . | . . . . . . . Follow-up Attacks . | . . . . . . . Damage Inflicted 3659 | 317 1267 251 . 166 . 1658 Guns 2870 | 317 1088 251 . 166 . 1048 Cannons 453 | . . . . . . 453 Explosions 329 | . 172 . . . . 157 Melee . | . . . . . . . Ramming 7 | . 7 . . . . . Kinetic 2148 | 140 496 251 . 166 . 1095 Thermal 506 | 177 172 . . . . 157 Explosive . | . . . . . . . Electromagnetic 998 | . 592 . . . . 406 Impact . | . . . . . . . Slashing . | . . . . . . . Piercing . | . . . . . . . Highest Corruption . | . . . . . . . Average Corruption . | . . . . . . . Corruption Purged . | . . . . . . . Overload Shots . | . . . . . . . Overflow Damage 2 | . . . . . . 2 Projectiles 2 | . . . . . . 2 Explosions . | . . . . . . . Melee . | . . . . . . . Knockbacks 4 | . . . . . . 4 Impact . | . . . . . . . Kinetic 4 | . . . . . . 4 Secondary . | . . . . . . . Self-Inflicted Damage 68 | . 68 . . . . . Shots 3 | . 3 . . . . . Rammed 1 | . 1 . . . . . Targets Rammed 1 | . 1 . . . . . Kicked . | . . . . . . . Crushed . | . . . . . . . Highest Temperature 420 | 27 249 . . . . 420 Average Temperature 59 | 12 74 . . . . 65 Received Heat Transfer 1353 | . 315 . . . . 1038 Siege Activations . | . . . . . . . Robots Corrupted 2 | . 1 . . . . 1 Combat Hostiles 2 | . 1 . . . . 1 Parts Fried 6 | . 3 . . . . 3 Impact Corruptions . | . . . . . . . Robots Melted . | . . . . . . . Combat Hostiles . | . . . . . . . Parts Melted . | . . . . . . . Heat Transferred 868 | 518 200 . . . . 150 Parts Sabotaged . | . . . . . . . Parts Stolen . | . . . . . . . Parts Stripped . | . . . . . . . Power Chain Reactions 6 | . 4 . . . . 2 Missiles Intercepted . | . . . . . . . Alert | -11 -10 -10 -10 -9 -8 -8 ------- Run | Scr Mat Min Exi Min Mat Gar Peak Influence 454 | 55 180 225 . 85 33 454 Average Influence 153 | 26 61 155 . 25 33 307 Maximum Alert Level 2 | . . 1 . . . 2 Low Security (%) 63 | 100 100 51 . 100 100 14 Level 1 31 | . . 48 . . . 71 Level 2 5 | . . . . . . 14 Level 3 . | . . . . . . . Level 4 . | . . . . . . . Level 5 . | . . . . . . . High Security . | . . . . . . . Max Security . | . . . . . . . Squads Dispatched 2 | . 2 . . . . . Investigation 1 | . 1 . . . . . Extermination . | . . . . . . . Reinforcement 1 | . 1 . . . . . Assault . | . . . . . . . Garrison . | . . . . . . . Intercept . | . . . . . . . Construction Impeded . | . . . . . . . Haulers Reinforced . | . . . . . . . Stealth | -11 -10 -10 -10 -9 -8 -8 --------- Run | Scr Mat Min Exi Min Mat Gar Distress Signals 1 | . 1 . . . . . Communications Jammed . | . . . . . . . Distress Signals . | . . . . . . . Times Spotted 54 | . 19 9 . 5 . 21 Peak Tracking Total 7 | . 4 3 . 4 . 7 Tactical Retreats 2 | . 1 . . 1 . . Traps | -11 -10 -10 -10 -9 -8 -8 ------- Run | Scr Mat Min Exi Min Mat Gar Traps Triggered 7 | . 3 . . . . 4 Indirectly . | . . . . . . . Trap Hack Attempts . | . . . . . . . Triggered . | . . . . . . . Disarmed . | . . . . . . . Reprogrammed . | . . . . . . . Reused . | . . . . . . . Traps Extracted . | . . . . . . . Installed . | . . . . . . . Triggered . | . . . . . . . Machines | -11 -10 -10 -10 -9 -8 -8 ---------- Run | Scr Mat Min Exi Min Mat Gar Machines Disabled 2 | . 1 . . . . 1 Max in Single Turn 1 | . 1 . . . . 1 Garrison Relay 1 | . . . . . . 1 Machines Sabotaged . | . . . . . . . Garrisons Compromised . | . . . . . . . Overloaded Fab Kills . | . . . . . . . Fab Network Shutdowns . | . . . . . . . Hacking | -11 -10 -10 -10 -9 -8 -8 --------- Run | Scr Mat Min Exi Min Mat Gar Machines Accessed 7 | . 6 . . . 1 . Terminals 6 | . 6 . . . . . Fabricators . | . . . . . . . Repair Stations . | . . . . . . . Recycling Units . | . . . . . . . Scanalyzers . | . . . . . . . Garrison Access 1 | . . . . . 1 . Total Hacks 23 | . 22 . . . 1 . Successful 11 | . 10 . . . 1 . Failed 12 | . 12 . . . . . Catastrophic 3 | . 3 . . . . . Database Lockouts . | . . . . . . . Manual 15 | . 15 . . . . . Terminals 22 | . 22 . . . . . Fabricators . | . . . . . . . Repair Stations . | . . . . . . . Recycling Units . | . . . . . . . Scanalyzers . | . . . . . . . Garrison Access 1 | . . . . . 1 . Terminal Hacks 10 | . 10 . . . . . Part Schematic 2 | . 2 . . . . . Prototype ID Bank 4 | . 4 . . . . . Unreport Threat 2 | . 2 . . . . . Locate Traps 2 | . 2 . . . . . Fabricator Hacks . | . . . . . . . Repair Station Hacks . | . . . . . . . Recycling Unit Hacks . | . . . . . . . Scanalyzer . | . . . . . . . Garrison Access Hacks 1 | . . . . . 1 . Unlock Access 1 | . . . . . 1 . Unauthorized Hacks . | . . . . . . . Terminals . | . . . . . . . Fabricators . | . . . . . . . Repair Stations . | . . . . . . . Recycling Units . | . . . . . . . Scanalyzers . | . . . . . . . Garrison Access . | . . . . . . . Data Cores Recovered . | . . . . . . . Used . | . . . . . . . Hacking Detections 6 | . 6 . . . . . Full Trace Events 2 | . 2 . . . . . Feedback Events . | . . . . . . . Feedback Blocked . | . . . . . . . Robot Schematics Acquired . | . . . . . . . Robots Built . | . . . . . . . Matter . | . . . . . . . Time . | . . . . . . . Total Robot Build Rating . | . . . . . . . Part Schematics Acquired 2 | . 2 . . . . . Parts Built . | . . . . . . . Matter . | . . . . . . . Time . | . . . . . . . Total Part Build Rating . | . . . . . . . Parts Repaired . | . . . . . . . Time . | . . . . . . . Parts Recycled . | . . . . . . . Recycled Matter . | . . . . . . . Retrieved Matter . | . . . . . . . Retrieved Components . | . . . . . . . Parts Scanalyzed . | . . . . . . . Part Schematics Acquired . | . . . . . . . Parts Damaged . | . . . . . . . Bothacking | -11 -10 -10 -10 -9 -8 -8 ------------ Run | Scr Mat Min Exi Min Mat Gar Used RIF Installer 1 | . . . . . . 1 Robots Hacked . | . . . . . . . Non-combat . | . . . . . . . Combat . | . . . . . . . Robot Hacks Applied . | . . . . . . . Relay Couplers Released 4 | . . . . . . 4 Machine Destruction 4 | . . . . . . 4 Robots Rewired . | . . . . . . . Allies Hacked . | . . . . . . . Hacks Repelled . | . . . . . . . Allies | -11 -10 -10 -10 -9 -8 -8 -------- Run | Scr Mat Min Exi Min Mat Gar Total Allies . | . . . . . . . Largest Group . | . . . . . . . Highest-Rated Group . | . . . . . . . Highest-Rated Ally . | . . . . . . . Total Orders . | . . . . . . . Ally Attacks . | . . . . . . . Total Damage . | . . . . . . . Kills . | . . . . . . . Allies Corrupted . | . . . . . . . Allies Melted . | . . . . . . . Intel | -11 -10 -10 -10 -9 -8 -8 ------- Run | Scr Mat Min Exi Min Mat Gar Robot Analysis Total . | . . . . . . . Derelict Logs Recovered 2 | . . . . 2 . . Drone Launches . | . . . . . . . Drone Recoveries . | . . . . . . . Exploration | -11 -10 -10 -10 -9 -8 -8 ------------- Run | Scr Mat Min Exi Min Mat Gar Turns Passed 2873 | 244 793 239 290 290 60 957 Spaces Moved 1940 | 144 543 182 288 231 54 498 Core 1 | 1 . . . . . . Treads . | . . . . . . . Legs . | . . . . . . . Wheels 1939 | 143 543 182 288 231 54 498 Hover . | . . . . . . . Flight . | . . . . . . . Fastest Speed 50 | 50 80 100 100 100 100 96 Average Speed 104 | 93 89 100 100 100 100 130 Slowest Speed 150 | 100 100 100 100 100 100 150 Overloaded Moves . | . . . . . . . Propulsion Burnouts . | . . . . . . . Robots Hopped . | . . . . . . . Cave-ins Triggered . | . . . . . . . Exploration Rate (%) 45 | 5 87 48 70 51 5 54 Regions Visited 6 Branch Regions 3 Pre-discovered Areas . | . . . . . . . Known Exits Taken 1 | . . . . . 1 . Unknown Exits Taken 5 | 1 1 1 1 1 . . Scrap Searched . | . . . . . . . Spaces Dug 7 | . 7 . . . . . Terrain Destroyed 22 | . 19 . . . . 3 Melee . | . . . . . . . Projectile 7 | . 7 . . . . . AOE 15 | . 12 . . . . 3 Actions | -11 -10 -10 -10 -9 -8 -8 --------- Run | Scr Mat Min Exi Min Mat Gar Total 2435 | 216 722 205 290 264 60 678 Wait 129 | 32 61 4 . 18 . 14 Move 1934 | 143 542 181 287 230 53 498 Hop . | . . . . . . . Pick Up 70 | 10 18 3 1 2 4 32 Fast Attach 13 | 5 6 . . . . 2 Attach 31 | 2 7 . . 1 3 18 Detach 3 | . . . . . . 3 Swap 20 | 2 12 . 1 . . 5 Drop 23 | 4 10 . 1 . . 8 Fire 187 | 18 65 17 . 13 . 74 Melee . | . . . . . . . Ram 1 | . 1 . . . . . Kick . | . . . . . . . Crush . | . . . . . . . Escape Stasis 24 | . . . . . . 24 Rewire . | . . . . . . . Trap . | . . . . . . . Miscellaneous . | . . . . . . . Route ------- -11/Scrapyard -10/Materials (discovered 4 exits: [*Mat x3] / [*Min]) -10/Mines (discovered 3 exits: [*Mat x2] / [*Exi]) -10/Exiles -9/Mines -8/Materials -8/Garrison (discovered 1 exit: [*Mat]) History --------- Turn | Location | Event 14 | -11/Scrapyard | Discovered new exit (range 15) 245 | -11/Scrapyard | Entered Materials 307 | -10/Materials | Build established: Mutant 536 | -10/Materials | Discovered new exit (range 5) 654 | -10/Materials | Discovered new exit (range 13) 690 | -10/Materials | Build established: Scavenger-Mutant 759 | -10/Materials | Lost 5 parts (2p2n1w) 830 | -10/Materials | Discovered new exit (range 16) 921 | -10/Materials | Discovered new exit (range 14) 925 | -10/Materials | Core integrity fell below 50% 1001 | -10/Materials | Build established: Mutant 1038 | -10/Materials | Entered Mines 1063 | -10/Mines | Discovered new exit (range 10) 1249 | -10/Mines | Discovered new exit (range 10) 1272 | -10/Mines | Deemed a non-threat by the Exiles lab entrance 1273 | -10/Mines | Discovered new exit (range 5) 1277 | -10/Mines | Entered Exiles 1277 | -10/Exiles | Found Exiles lab abandoned 1559 | -10/Exiles | Discovered new exit (range 10) 1567 | -10/Exiles | Entered Mines 1583 | -9/Mines | Learned Materials trap positions 1588 | -9/Mines | Met a Derelict bent on vengeance 1697 | -9/Mines | Found a damaged Exp. Sensor Array with a note attached 1699 | -9/Mines | Found Prototype Device 1762 | -9/Mines | Core integrity fell below 20% 1779 | -9/Mines | Discovered new exit (range 15) 1818 | -9/Mines | Learned Materials emergency access door positions 1857 | -9/Mines | Entered Materials 1857 | -8/Materials | Evolved 4 slots: Propulsion x1, Utility x3 1858 | -8/Materials | Loaded intel: 12 trap records 1916 | -8/Materials | Identified exit to Garrison 1917 | -8/Materials | Entered Garrison 1958 | -8/Garrison | Triggered checkpoint 2042 | -8/Garrison | Lost 8 parts (1p3n1u3w) 2046 | -8/Garrison | Triggered checkpoint 2072 | -8/Garrison | Destroyed 8 combat bots 2163 | -8/Garrison | Build established: Hauler-Mutant 2244 | -8/Garrison | Triggered checkpoint 2277 | -8/Garrison | Discovered new exit (range 14) 2296 | -8/Garrison | Lost 4 parts (2n2w) 2309 | -8/Garrison | Installed Relay Interface Framework 2512 | -8/Garrison | Triggered checkpoint 2513 | -8/Garrison | Garrison Relay disabled 2592 | -8/Garrison | Triggered checkpoint 2598 | -8/Garrison | Core integrity fell below 50% 2642 | -8/Garrison | Lost 4 parts (1p3w) 2836 | -8/Garrison | Triggered checkpoint 2874 | -8/Garrison | Self-destructed Last Messages --------------- 02784_ Acquired Lgt. Armor Plating. 02787_ Dropped Lgt. Armor Plating. 02787_ Acquired Imp. Medium Armor Plating. 02791_ Dropped Imp. Light Armor Plating. 02791_ Acquired Imp. Medium Armor Plating. 02813_ Dropped Particle Gun. 02813_ Dropped Lgt. Assault Rifle. 02814_ Acquired Lightning Gun. 02819_ Dropped Imp. Terrain Scanner. 02819_ Acquired Lightning Gun. 02836_ Beams of light sweep through the air. An alarm sounds. 02838_ G-47 Trooper destroyed. 02843_ Acquired 30 matter. 02861_ Com. Wheel destroyed. 02870_ G-47 Trooper IFF system glitched. 02872_ G-47 Trooper system terminally corrupted. 02872_ Aluminum Leg fried. 02872_ Particle Gun fried. 02872_ Aluminum Leg fried. 02873_ Lightning Gun destroyed. Map ----- +----------------------------------------------------+ | ?????????????????# #???????# #??????# #???????# | | ??###????????????# #???????# #??????# #???????# | | ??#!!############# ######### #??????# ######### | | ??# #??????# # | | ??# #??????# # | | ??#!!############# ############??????###### ##### | | ??###????????????# #??????????????????????# #???# | | ?????????????????# #??????????????????????# #???# | | ?????????????????# #??????????????????##### #???# | | ?????????????????# #######????????????#! ## #???# | | ?????????????????# ! #????????????# #???# | | ?????????????????# #%### #????????????# ## #???# | | ?????????????????# ###?# ######???????#! ## #?### | | ?????????????????# #???# ## #???????#! ## ###%= | | ?????????????????# #???# ! !#???????#!!## "=% | | ?????????????????# #???# ######???????######### [ | | ????????????????? #???# ##!!!#???????????????### | | ????????????????? #???# #?????????????????# | | ?????????????????####???# ######?????????????????# | | ????????????????????????# ## #?????????????????# | | ????????????????????????# [[!#?????????????????# | | ????????????????????????# ######?????????????????# | | ????????????????????????# #??????????????????????# | | ?????????????# ######???# #??????????????????????# | | ??????????????? " ??# #??????????????????????# | | ????????????????### ###@#??????????????????????# | | ????????????????# =% % #??????????????????????# | | ????????????????# g #??????????????????????# | | ????????????????###########??????????????????????# | | ?????????????????????????????????????????????????? | | ?????????????????????????????????????????????????? | | ?????????????????????????????????????????????????? | | ?????????????????????????????????????????????????? | | ?????????????????????????????????????????????????? | | ?????????????????????????????????????????????????? | | ?????????????????????????????????????????????????? | | ?????????????????????????????????????????????????? | | ?????????????????????????????????????????????????? | | ?????????????????????????????????????????????????? | | | | | | | | | | | | | | | | | | | | | | | +----------------------------------------------------+ Best States ------------- Heat Dissipation 59 Energy Generation 14 Energy Capacity 265 Matter Stores 300 Matter Capacity 300 Sight Range 16 Terrain Scan Range 16 Terrain Scan Density 10 Armor Coverage 225 Evasion (%) 44 Item Schematics ----------------- Hcp. Storage Unit | -10/Materials | Hacked Wheel | -10/Materials | Hacked Robot Schematics ------------------ None Fabricated ------------ Nothing Alien Tech Used ----------------- None Achievements -------------- None Challenges ------------ None Game ------ Seed TerrainTrapLeg Manual? 0 Play Time 00:25:31 Cumulative 169.8 hours Start 2020.09.01 @ 15:21:37 End 2020.09.01 @ 19:31:29 Sessions 3 Manual Loads 0 Difficulty Rogue Special Mode None Game No. 195 Rogue 195 Adventurer 0 Explorer 0 Win Type - Total 2 Types 2/0/0/0/0/0/0 Lore% 62 Gallery% 73 Achievement% 54 Wizard Run 0 Options --------- ASCII 0 Keyboard 0 Movement Numpad Keybinds 0 Fullscreen 2 Font 24/Smallcaps Map View 76x50 Tactical HUD 1 Map Filters NONE Filters NONE Steam 1 RUN: 9aff7970-a664-4a41-a96e-2d6071500d06